Department Family,Entity,Date Paid,Expense Type,Expenses Area,Supplier Name,Transaction Reference,Total,VAT Registration Number
Department of Health,Imperial College Healthcare NHS Trust,08/03/2011,Acton Housing Association,Housing Deductions,A2dominion Housing Group Ltd,2142921,"150,990.75",Optional requirement only
Department of Health,Imperial College Healthcare NHS Trust,29/03/2011,Acton Housing Association,Housing Deductions,A2dominion Housing Group Ltd,2160618,"151,780.12",Optional requirement only
Department of Health,Imperial College Healthcare NHS Trust,31/03/2011,Rent,Ravenscourt Directorate,Abbey National Treasury Services Plc,2165342,"935,275.50",Optional requirement only
Department of Health,Imperial College Healthcare NHS Trust,22/03/2011,Lab - Reagents/Chemicals,Clin & Investigative Sciences,Abbott Laboratories Ltd,2121899,"62,320.71",Optional requirement only
Department of Health,Imperial College Healthcare NHS Trust,22/03/2011,Lab - Reagents/Chemicals,Clin & Investigative Sciences,Abbott Laboratories Ltd,2122512,"214,808.72",Optional requirement only
Department of Health,Imperial College Healthcare NHS Trust,22/03/2011,Lab - Reagents/Chemicals,Clin & Investigative Sciences,Abbott Laboratories Ltd,2153820,"77,801.44",Optional requirement only
Department of Health,Imperial College Healthcare NHS Trust,03/03/2011,Hh Pharmacy Stock,Stock,Amgen Ltd,2134079,"36,000.00",Optional requirement only
Department of Health,Imperial College Healthcare NHS Trust,29/03/2011,Hh Pharmacy Stock,Stock,Amgen Ltd,2152388,"38,220.00",Optional requirement only
Department of Health,Imperial College Healthcare NHS Trust,29/03/2011,Buildings-Additions-Purchased,Capital Summary,Architechnics Chartered Architects,2162201,"34,090.80",Optional requirement only
Department of Health,Imperial College Healthcare NHS Trust,28/03/2011,Computers - Maintenance Softwa,Information & Comms Technology,Ascribe Ltd,2142739,"46,125.36",Optional requirement only
Department of Health,Imperial College Healthcare NHS Trust,28/03/2011,It Eqpt-Additions,Capital Summary,Ascribe Ltd,2142742,"36,480.00",Optional requirement only
Department of Health,Imperial College Healthcare NHS Trust,28/03/2011,Drugs Other Authorities,Specialist Services 2,Baxter Healthcare Ltd,2145484,"34,371.14",Optional requirement only
Department of Health,Imperial College Healthcare NHS Trust,01/03/2011,Repairs  And  Maintenance,Clin & Investigative Sciences,Beckman Coulter Uk Ltd,2133842,"79,228.97",Optional requirement only
Department of Health,Imperial College Healthcare NHS Trust,28/03/2011,Repairs  And  Maintenance,Clin & Investigative Sciences,Beckman Coulter Uk Ltd,2150998,"79,228.97",Optional requirement only
Department of Health,Imperial College Healthcare NHS Trust,01/03/2011,Chx Pharmacy Stock,Stock,Biotest (Uk) Ltd,2130418,"43,550.00",Optional requirement only
Department of Health,Imperial College Healthcare NHS Trust,01/03/2011,Hh Pharmacy Stock,Stock,Biotest (Uk) Ltd,2130827,"40,200.00",Optional requirement only
Department of Health,Imperial College Healthcare NHS Trust,10/03/2011,Hh Pharmacy Stock,Stock,Biotest (Uk) Ltd,2141680,"40,200.00",Optional requirement only
Department of Health,Imperial College Healthcare NHS Trust,24/03/2011,Chx Pharmacy Stock,Stock,Biotest (Uk) Ltd,2143311,"40,200.00",Optional requirement only
Department of Health,Imperial College Healthcare NHS Trust,24/03/2011,Hh Pharmacy Stock,Stock,Biotest (Uk) Ltd,2142338,"40,200.00",Optional requirement only
Department of Health,Imperial College Healthcare NHS Trust,28/03/2011,Chx Pharmacy Stock,Stock,Biotest (Uk) Ltd,2147032,"40,200.00",Optional requirement only
Department of Health,Imperial College Healthcare NHS Trust,29/03/2011,Hh Pharmacy Stock,Stock,Biotest (Uk) Ltd,2153445,"40,200.00",Optional requirement only
Department of Health,Imperial College Healthcare NHS Trust,22/03/2011,It Eqpt-Additions,Capital Summary,Block Solutions Ltd,2135455,"415,928.94",Optional requirement only
Department of Health,Imperial College Healthcare NHS Trust,28/03/2011,It Eqpt-Additions,Capital Summary,Block Solutions Ltd,2149629,"223,728.31",Optional requirement only
Department of Health,Imperial College Healthcare NHS Trust,29/03/2011,It Eqpt-Additions,Capital Summary,Block Solutions Ltd,2152845,"55,455.75",Optional requirement only
Department of Health,Imperial College Healthcare NHS Trust,22/03/2011,Jac - Stock,Stock,Bms Pharmaceuticals Ltd (0034),2143166,"44,122.52",Optional requirement only
Department of Health,Imperial College Healthcare NHS Trust,01/03/2011,Jac - Stock,Stock,Boehringer Ingelheim Ltd,2136293,"65,280.00",Optional requirement only
Department of Health,Imperial College Healthcare NHS Trust,08/03/2011,Jac - Stock,Stock,Boehringer Ingelheim Ltd,2142124,"61,200.00",Optional requirement only
Department of Health,Imperial College Healthcare NHS Trust,29/03/2011,Defibrillators,Specialist Services 2,Boston Scientific Ltd,2161872,"147,060.00",Optional requirement only
Department of Health,Imperial College Healthcare NHS Trust,03/03/2011,Computers - Other Contrct Serv,Finance Directorate,Capgemini Uk Plc,2133025,"168,419.60",Optional requirement only
Department of Health,Imperial College Healthcare NHS Trust,03/03/2011,Computers - Other Contrct Serv,Finance Directorate,Capgemini Uk Plc,2133026,"164,910.86",Optional requirement only
Department of Health,Imperial College Healthcare NHS Trust,22/03/2011,Management Services,Human Resources,Capsticks Solicitors Llp,2143037,"62,700.00",Optional requirement only
Department of Health,Imperial College Healthcare NHS Trust,03/03/2011,Medical Equipment,Estates Directorate,Cardiac Services Ltd,2128174,"29,662.88",Optional requirement only
Department of Health,Imperial College Healthcare NHS Trust,08/03/2011,Drugs Other Authorities,Clin & Investigative Sciences,Careology Ltd,2143837,"43,285.40",Optional requirement only
Department of Health,Imperial College Healthcare NHS Trust,15/03/2011,Hh Pharmacy Stock,Stock,Careology Ltd,2147418,"44,911.91",Optional requirement only
Department of Health,Imperial College Healthcare NHS Trust,22/03/2011,P & M-Additions-Purchased,Capital Summary,Carestream Health Uk Ltd,2154362,"254,408.40",Optional requirement only
Department of Health,Imperial College Healthcare NHS Trust,17/03/2011,Management Services,Information & Comms Technology,Cdc Business Solutions,2145548,"32,880.00",Optional requirement only
Department of Health,Imperial College Healthcare NHS Trust,28/03/2011,Management Services,Information & Comms Technology,Cdc Business Solutions,2159662,"39,135.00",Optional requirement only
Department of Health,Imperial College Healthcare NHS Trust,03/03/2011,Clin Psychologist A  ,Womens And Childrens Direct'E,Central & North West London,2110108,"27,729.75",Optional requirement only
Department of Health,Imperial College Healthcare NHS Trust,17/03/2011,A&C Band 8a,Medicine Cpg,Central & North West London,2140394,"33,119.59",Optional requirement only
Department of Health,Imperial College Healthcare NHS Trust,17/03/2011,Miscellaneous Items,Clin & Investigative Sciences,Central London Community Healthcare Nhs Trust,2139697,"39,142.00",Optional requirement only
Department of Health,Imperial College Healthcare NHS Trust,28/03/2011,Prosthetic Service Contract ,Specialist Services 1,Chas A Blatchford And Sons Ltd,2148218,"44,071.61",Optional requirement only
Department of Health,Imperial College Healthcare NHS Trust,17/03/2011,C&W Path Sla Merit/Sift,Clin & Investigative Sciences,Chelsea And  Westminster Hospital Nhs,2147454,"66,725.00",Optional requirement only
Department of Health,Imperial College Healthcare NHS Trust,29/03/2011,P & M-Additions-Purchased,Capital Summary,Cls Surgical Ltd,2157116,"90,706.80",Optional requirement only
Department of Health,Imperial College Healthcare NHS Trust,29/03/2011,P & M-Additions-Purchased,Capital Summary,Cls Surgical Ltd,2157125,"52,660.80",Optional requirement only
Department of Health,Imperial College Healthcare NHS Trust,24/03/2011,Miscellaneous Debtor Provision,VAT Consultancy,Crs Vat Consulting Ltd,2150160,"32,096.89",Optional requirement only
Department of Health,Imperial College Healthcare NHS Trust,01/03/2011,Buildings-Additions-Purchased,Capital Summary,Cuffe  Plc,2122832,"208,891.20",Optional requirement only
Department of Health,Imperial College Healthcare NHS Trust,24/03/2011,Buildings-Additions-Purchased,Capital Summary,Cuffe  Plc,2139553,"204,384.00",Optional requirement only
Department of Health,Imperial College Healthcare NHS Trust,28/03/2011,Buildings-Additions-Purchased,Capital Summary,Cuffe  Plc,2157896,"64,940.03",Optional requirement only
Department of Health,Imperial College Healthcare NHS Trust,28/03/2011,Buildings-Additions-Purchased,Capital Summary,Cuffe  Plc,2160088,"389,006.40",Optional requirement only
Department of Health,Imperial College Healthcare NHS Trust,28/03/2011,Buildings-Additions-Purchased,Capital Summary,Cuffe  Plc,2160108,"368,698.80",Optional requirement only
Department of Health,Imperial College Healthcare NHS Trust,28/03/2011,Buildings-Additions-Purchased,Capital Summary,Cuffe  Plc,2160198,"168,847.20",Optional requirement only
Department of Health,Imperial College Healthcare NHS Trust,01/03/2011,Buildings-Additions-Purchased,Capital Summary,D.Williams Carpentry & Building Ltd,2131040,"44,863.20",Optional requirement only
Department of Health,Imperial College Healthcare NHS Trust,08/03/2011,Repairs  And  Maintenance,Surgery And Cancer,De Lage Landen Leasing Limited,2122738,"77,275.87",Optional requirement only
Department of Health,Imperial College Healthcare NHS Trust,15/03/2011,Miscellaneous Items,Estates Directorate,Deanway Builders,2148059,"35,100.00",Optional requirement only
Department of Health,Imperial College Healthcare NHS Trust,29/03/2011,It Eqpt-Additions,Capital Summary,Dell Computer Corp Ltd,2154063,"48,360.00",Optional requirement only
Department of Health,Imperial College Healthcare NHS Trust,01/03/2011,Rent,Estates Directorate,Derwent London Property Management 50022,2126854,"83,268.00",Optional requirement only
Department of Health,Imperial College Healthcare NHS Trust,22/03/2011,Courier Service,Clin & Investigative Sciences,Dhl (Former Excel),2151907,"82,030.00",Optional requirement only
Department of Health,Imperial College Healthcare NHS Trust,24/03/2011,Ambulance Contract,Nursing & Ops Directorate,Dhl (Former Excel),2156618,"627,003.83",Optional requirement only
Department of Health,Imperial College Healthcare NHS Trust,29/03/2011,Minor Project,Nursing & Ops Directorate,Dhl (Former Excel),2157958,"36,000.00",Optional requirement only
Department of Health,Imperial College Healthcare NHS Trust,29/03/2011,Nts Travel - Non Nhs Ambulance,Medicine Cpg,Dhl (Former Excel),2161875,"31,371.53",Optional requirement only
Department of Health,Imperial College Healthcare NHS Trust,15/03/2011,Medical Equipment,Specialist Services 2,Edwards Lifesciences Ltd,2145434,"33,424.20",Optional requirement only
Department of Health,Imperial College Healthcare NHS Trust,17/03/2011,Medical Equipment,Specialist Services 2,Edwards Lifesciences Ltd,2150381,"50,136.30",Optional requirement only
Department of Health,Imperial College Healthcare NHS Trust,24/03/2011,Hh Pharmacy Stock,Stock,Eli Lilly And Company Limited,2142619,"70,120.51",Optional requirement only
Department of Health,Imperial College Healthcare NHS Trust,01/03/2011,P & M-Additions-Purchased,Capital Summary,Emsc (Uk) Limited,2086851,"37,190.52",Optional requirement only
Department of Health,Imperial College Healthcare NHS Trust,10/03/2011,Consultancy Services,Dir Of Chief Exec,Ernst And Young,2144184,"437,552.40",Optional requirement only
Department of Health,Imperial College Healthcare NHS Trust,17/03/2011,Consultancy Services,Dir Of Chief Exec,Ernst And Young,2144183,"890,760.00",Optional requirement only
Department of Health,Imperial College Healthcare NHS Trust,17/03/2011,Consultancy Services,Dir Of Chief Exec,Ernst And Young,2149958,"291,656.51",Optional requirement only
Department of Health,Imperial College Healthcare NHS Trust,28/03/2011,Computers - Maintenance Softwa,Information & Comms Technology,Eurodata Systems Plc,2159170,"61,645.53",Optional requirement only
Department of Health,Imperial College Healthcare NHS Trust,28/03/2011,It Eqpt-Additions,Capital Summary,Eurodata Systems Plc,2159369,"45,454.32",Optional requirement only
Department of Health,Imperial College Healthcare NHS Trust,29/03/2011,Buildings-Additions-Purchased,Capital Summary,Fleet Insulation Company Ltd,2152834,"63,433.20",Optional requirement only
Department of Health,Imperial College Healthcare NHS Trust,01/03/2011,Jac - Stock,Stock,Gilead Sciences Ltd,2132312,"203,516.93",Optional requirement only
Department of Health,Imperial College Healthcare NHS Trust,01/03/2011,Jac - Stock,Stock,Gilead Sciences Ltd,2136141,"152,691.84",Optional requirement only
Department of Health,Imperial College Healthcare NHS Trust,01/03/2011,Jac - Stock,Stock,Gilead Sciences Ltd,2137761,"137,217.44",Optional requirement only
Department of Health,Imperial College Healthcare NHS Trust,03/03/2011,Hh Pharmacy Stock,Stock,Gilead Sciences Ltd,2134091,"75,945.60",Optional requirement only
Department of Health,Imperial College Healthcare NHS Trust,24/03/2011,Jac - Stock,Stock,Gilead Sciences Ltd,2144017,"152,691.84",Optional requirement only
Department of Health,Imperial College Healthcare NHS Trust,28/03/2011,Hh Pharmacy Stock,Stock,Gilead Sciences Ltd,2154633,"88,603.20",Optional requirement only
Department of Health,Imperial College Healthcare NHS Trust,28/03/2011,Jac - Stock,Stock,Gilead Sciences Ltd,2149235,"158,997.60",Optional requirement only
Department of Health,Imperial College Healthcare NHS Trust,28/03/2011,Waste Disposal,Estates Directorate,Grundon Waste Management Ltd,2154746,"31,303.98",Optional requirement only
Department of Health,Imperial College Healthcare NHS Trust,28/03/2011,Miscellaneous Items,Specialist Services 2,Hayes Cottage Renal Unit Ltd,2159131,"56,400.00",Optional requirement only
Department of Health,Imperial College Healthcare NHS Trust,01/03/2011,Drugs Other Authorities,Clin & Investigative Sciences,Healthcare At Home Ltd,2135431,"216,129.66",Optional requirement only
Department of Health,Imperial College Healthcare NHS Trust,01/03/2011,Pbr Excluded Drugs,Specialist Services 2,Healthcare At Home Ltd,2135429,"51,211.82",Optional requirement only
Department of Health,Imperial College Healthcare NHS Trust,01/03/2011,Pbr Excluded Drugs,Specialist Services 2,Healthcare At Home Ltd,2135682,"30,715.65",Optional requirement only
Department of Health,Imperial College Healthcare NHS Trust,03/03/2011,Pbr Excluded Drugs,Specialist Services 2,Healthcare At Home Ltd,2135669,"34,195.28",Optional requirement only
Department of Health,Imperial College Healthcare NHS Trust,03/03/2011,Pbr Excluded Drugs,Specialist Services 2,Healthcare At Home Ltd,2135675,"62,158.27",Optional requirement only
Department of Health,Imperial College Healthcare NHS Trust,22/03/2011,Pbr Excluded Drugs,Specialist Services 2,Healthcare At Home Ltd,2140786,"79,145.54",Optional requirement only
Department of Health,Imperial College Healthcare NHS Trust,22/03/2011,Pbr Excluded Drugs,Specialist Services 2,Healthcare At Home Ltd,2140818,"39,534.06",Optional requirement only
Department of Health,Imperial College Healthcare NHS Trust,22/03/2011,Pbr Excluded Drugs,Specialist Services 2,Healthcare At Home Ltd,2147453,"29,625.00",Optional requirement only
Department of Health,Imperial College Healthcare NHS Trust,24/03/2011,Drugs - Anti Tnf,Specialist Services 2,Healthcare At Home Ltd,2154765,"59,250.00",Optional requirement only
Department of Health,Imperial College Healthcare NHS Trust,24/03/2011,Drugs - Anti Tnf,Specialist Services 2,Healthcare At Home Ltd,2154769,"88,456.78",Optional requirement only
Department of Health,Imperial College Healthcare NHS Trust,24/03/2011,Drugs Other Authorities,Clin & Investigative Sciences,Healthcare At Home Ltd,2150836,"102,653.33",Optional requirement only
Department of Health,Imperial College Healthcare NHS Trust,24/03/2011,Pbr Excluded Drugs,Specialist Services 2,Healthcare At Home Ltd,2147471,"43,250.76",Optional requirement only
Department of Health,Imperial College Healthcare NHS Trust,24/03/2011,Pbr Excluded Drugs,Specialist Services 2,Healthcare At Home Ltd,2147694,"127,086.96",Optional requirement only
Department of Health,Imperial College Healthcare NHS Trust,24/03/2011,Pbr Excluded Drugs,Specialist Services 2,Healthcare At Home Ltd,2153550,"63,668.48",Optional requirement only
Department of Health,Imperial College Healthcare NHS Trust,24/03/2011,Pbr Excluded Drugs,Specialist Services 2,Healthcare At Home Ltd,2154764,"28,288.89",Optional requirement only
Department of Health,Imperial College Healthcare NHS Trust,22/03/2011,Chx Pharmacy Stock,Stock,Healthcare Product Services Ltd,2139953,"203,400.00",Optional requirement only
Department of Health,Imperial College Healthcare NHS Trust,28/03/2011,P & M-Additions-Purchased,Capital Summary,Hitachi Medical Systems Uk Ltd,2152814,"94,800.00",Optional requirement only
Department of Health,Imperial College Healthcare NHS Trust,15/03/2011,Miscellaneous ,Medicine Cpg,Home Office Accounting Officer,2140373,"45,350.00",Optional requirement only
Department of Health,Imperial College Healthcare NHS Trust,03/03/2011,Management Services,Information & Comms Technology,Hornet It Limited,2129166,"48,864.00",Optional requirement only
Department of Health,Imperial College Healthcare NHS Trust,28/03/2011,Management Services,Information & Comms Technology,Hornet It Limited,2144883,"47,607.00",Optional requirement only
Department of Health,Imperial College Healthcare NHS Trust,22/03/2011,Maintenance - Contract,Infection Control Directorate,Icnet Ltd,2152505,"46,867.65",Optional requirement only
Department of Health,Imperial College Healthcare NHS Trust,01/03/2011,Qualified Nurses-Intrnl Rechrg,Medical Director - Fr Centres,Imperial College,1674167,"26,000.00",Optional requirement only
Department of Health,Imperial College Healthcare NHS Trust,03/03/2011,Imperial College  - Technical ,Medical Director - Fr Centres,Imperial College,2127940,"39,066.00",Optional requirement only
Department of Health,Imperial College Healthcare NHS Trust,03/03/2011,Imperial College  - Technical ,Medical Director - Fr Centres,Imperial College,2140029,"44,670.32",Optional requirement only
Department of Health,Imperial College Healthcare NHS Trust,03/03/2011,Imperial College  - Technical ,Medical Director - Fr Centres,Imperial College,2140031,"27,735.45",Optional requirement only
Department of Health,Imperial College Healthcare NHS Trust,03/03/2011,Library,Dir Of Education,Imperial College,2113266,"67,015.00",Optional requirement only
Department of Health,Imperial College Healthcare NHS Trust,03/03/2011,Library,Dir Of Education,Imperial College,2128165,"25,116.50",Optional requirement only
Department of Health,Imperial College Healthcare NHS Trust,10/03/2011,Imperial College  - Technical ,Medical Director - Fr Centres,Imperial College,1942397,"102,644.76",Optional requirement only
Department of Health,Imperial College Healthcare NHS Trust,10/03/2011,Imperial College  - Technical ,Medical Director - Fr Centres,Imperial College,2127935,"102,644.76",Optional requirement only
Department of Health,Imperial College Healthcare NHS Trust,10/03/2011,Imperial College  - Technical ,Medical Director - Fr Centres,Imperial College,2127936,"102,644.76",Optional requirement only
Department of Health,Imperial College Healthcare NHS Trust,10/03/2011,Imperial College  - Technical ,Medical Director - Fr Centres,Imperial College,2144993,"102,644.76",Optional requirement only
Department of Health,Imperial College Healthcare NHS Trust,15/03/2011,Distinction Awards - Discretio,Specialist Services 2,Imperial College,2147945,"63,792.49",Optional requirement only
Department of Health,Imperial College Healthcare NHS Trust,15/03/2011,Distinction Awards - Discretio,Specialist Services 2,Imperial College,2147946,"45,512.96",Optional requirement only
Department of Health,Imperial College Healthcare NHS Trust,15/03/2011,Distinction Awards - Discretio,Specialist Services 2,Imperial College,2147947,"64,587.40",Optional requirement only
Department of Health,Imperial College Healthcare NHS Trust,15/03/2011,Distinction Awards - Discretio,Specialist Services 2,Imperial College,2147948,"45,499.16",Optional requirement only
Department of Health,Imperial College Healthcare NHS Trust,15/03/2011,Imperial College - Medical,Specialist Services 2,Imperial College,2147945,"36,938.82",Optional requirement only
Department of Health,Imperial College Healthcare NHS Trust,15/03/2011,Imperial College - Medical,Specialist Services 2,Imperial College,2147947,"35,366.65",Optional requirement only
Department of Health,Imperial College Healthcare NHS Trust,15/03/2011,Imperial College  - Technical ,Medical Director - Fr Centres,Imperial College,2147742,"26,559.95",Optional requirement only
Department of Health,Imperial College Healthcare NHS Trust,15/03/2011,Imperial College  - Technical ,Medical Director - Fr Centres,Imperial College,2147744,"25,853.68",Optional requirement only
Department of Health,Imperial College Healthcare NHS Trust,17/03/2011,F & F-Additions,Capital Summary,Imperial College,2151408,"37,925.00",Optional requirement only
Department of Health,Imperial College Healthcare NHS Trust,17/03/2011,Trust Contract,Dir Of Chief Exec,Imperial College,2139963,"40,800.02",Optional requirement only
Department of Health,Imperial College Healthcare NHS Trust,22/03/2011,A  And  C Agency,Dir Of Education,Imperial College,2152513,"50,000.00",Optional requirement only
Department of Health,Imperial College Healthcare NHS Trust,22/03/2011,Courses/Conferences,Human Resources,Imperial College,2140702,"52,500.00",Optional requirement only
Department of Health,Imperial College Healthcare NHS Trust,22/03/2011,Distinction Awards - Cea Local,Clin & Investigative Sciences,Imperial College,2151373,"29,836.95",Optional requirement only
Department of Health,Imperial College Healthcare NHS Trust,22/03/2011,Distinction Awards - Cea Natnl,Clin & Investigative Sciences,Imperial College,2151373,"30,633.68",Optional requirement only
Department of Health,Imperial College Healthcare NHS Trust,22/03/2011,Imperial College - Medical,Clin & Investigative Sciences,Imperial College,2151372,"35,164.70",Optional requirement only
Department of Health,Imperial College Healthcare NHS Trust,24/03/2011,General Developments,Nursing & Ops Directorate,Imperial College,2125898,"114,168.08",Optional requirement only
Department of Health,Imperial College Healthcare NHS Trust,24/03/2011,Imperial College  - Technical ,Medical Director - Fr Centres,Imperial College,2155669,"29,823.16",Optional requirement only
Department of Health,Imperial College Healthcare NHS Trust,24/03/2011,Library,Dir Of Education,Imperial College,2155941,"25,116.50",Optional requirement only
Department of Health,Imperial College Healthcare NHS Trust,24/03/2011,Library,Dir Of Education,Imperial College,2155942,"67,015.00",Optional requirement only
Department of Health,Imperial College Healthcare NHS Trust,28/03/2011,Consultant - Non Nhs,Womens And Childrens Direct'E,Imperial College,2158226,"49,268.12",Optional requirement only
Department of Health,Imperial College Healthcare NHS Trust,28/03/2011,Distinction Awards - Cea Natnl,Womens And Childrens Direct'E,Imperial College,2158228,"27,699.74",Optional requirement only
Department of Health,Imperial College Healthcare NHS Trust,28/03/2011,Distinction Awards - Discretio,Womens And Childrens Direct'E,Imperial College,2158228,"58,742.23",Optional requirement only
Department of Health,Imperial College Healthcare NHS Trust,28/03/2011,Imperial College - Medical,Womens And Childrens Direct'E,Imperial College,2158226,"66,339.74",Optional requirement only
Department of Health,Imperial College Healthcare NHS Trust,29/03/2011,Building Work,Grant Funded,Imperial College,2160218,"695,024.82",Optional requirement only
Department of Health,Imperial College Healthcare NHS Trust,29/03/2011,Building Work,Grant Funded,Imperial College,2160219,"87,882.55",Optional requirement only
Department of Health,Imperial College Healthcare NHS Trust,29/03/2011,Building Work,Grant Funded,Imperial College,2160226,"57,513.39",Optional requirement only
Department of Health,Imperial College Healthcare NHS Trust,29/03/2011,Building Work,Grant Funded,Imperial College,2160231,"35,683.39",Optional requirement only
Department of Health,Imperial College Healthcare NHS Trust,29/03/2011,Medical Equipment,Clin & Investigative Sciences,Instrumentation Laboratory (Uk) Ltd,2078168,"40,556.44",Optional requirement only
Department of Health,Imperial College Healthcare NHS Trust,17/03/2011,Computer Hardware,"Performance, Planning & Info",Integrated Medical Solutions Ltd,2146644,"40,749.00",Optional requirement only
Department of Health,Imperial College Healthcare NHS Trust,22/03/2011,Computers - Maintenance Softwa,Information & Comms Technology,Integrated Medical Solutions Ltd,2140180,"475,989.95",Optional requirement only
Department of Health,Imperial College Healthcare NHS Trust,29/03/2011,Computers - Maintenance Softwa,Information & Comms Technology,Isoft Plc,2159468,"285,973.50",Optional requirement only
Department of Health,Imperial College Healthcare NHS Trust,10/03/2011,Jac - Stock,Stock,Janssen-Cilag Ltd,2143442,"57,538.12",Optional requirement only
Department of Health,Imperial College Healthcare NHS Trust,22/03/2011,Jac - Stock,Stock,Janssen-Cilag Ltd,2147514,"46,028.16",Optional requirement only
Department of Health,Imperial College Healthcare NHS Trust,01/03/2011,P & M-Additions-Purchased,Capital Summary,Keymed (Med & Ind Equip) Ltd,2137406,"150,719.19",Optional requirement only
Department of Health,Imperial College Healthcare NHS Trust,01/03/2011,P & M-Additions-Purchased,Capital Summary,Keymed (Med & Ind Equip) Ltd,2137407,"39,858.66",Optional requirement only
Department of Health,Imperial College Healthcare NHS Trust,24/03/2011,P & M-Additions-Purchased,Capital Summary,Keymed (Med & Ind Equip) Ltd,2154295,"49,086.85",Optional requirement only
Department of Health,Imperial College Healthcare NHS Trust,10/03/2011,Childcare Voucher (Kids Unltd),Childcare,Kids Unlimited Group Ltd,2144632,"72,574.47",Optional requirement only
Department of Health,Imperial College Healthcare NHS Trust,17/03/2011,Buildings-Additions-Purchased,Capital Summary,Killby & Gayford Group,2145740,"107,860.80",Optional requirement only
Department of Health,Imperial College Healthcare NHS Trust,29/03/2011,Buildings-Additions-Purchased,Capital Summary,Killby & Gayford Group,2148491,"96,808.80",Optional requirement only
Department of Health,Imperial College Healthcare NHS Trust,24/03/2011,Buildings-Additions-Purchased,Capital Summary,Lancer Uk Ltd,2146127,"350,941.20",Optional requirement only
Department of Health,Imperial College Healthcare NHS Trust,28/03/2011,Buildings-Additions-Purchased,Capital Summary,Lancer Uk Ltd,2146122,"545,283.38",Optional requirement only
Department of Health,Imperial College Healthcare NHS Trust,28/03/2011,Buildings-Additions-Purchased,Capital Summary,Lengard Ltd,2158842,"35,100.00",Optional requirement only
Department of Health,Imperial College Healthcare NHS Trust,22/03/2011,Nts Travel - Non Nhs Ambulance,Nursing & Ops Directorate,Lewis Day Transport Plc,2146784,"36,162.38",Optional requirement only
Department of Health,Imperial College Healthcare NHS Trust,01/03/2011,Buildings-Additions-Purchased,Capital Summary,Logan Construction (Se) Ltd,2104604,"123,479.58",Optional requirement only
Department of Health,Imperial College Healthcare NHS Trust,03/03/2011,Buildings-Additions-Purchased,Capital Summary,Logan Construction (Se) Ltd,2139572,"157,489.20",Optional requirement only
Department of Health,Imperial College Healthcare NHS Trust,28/03/2011,Buildings-Additions-Purchased,Capital Summary,Logan Construction (Se) Ltd,2152797,"69,258.00",Optional requirement only
Department of Health,Imperial College Healthcare NHS Trust,31/03/2011,Buildings-Additions-Purchased,Capital Summary,Logan Construction (Se) Ltd,2163004,"121,402.80",Optional requirement only
Department of Health,Imperial College Healthcare NHS Trust,29/03/2011,Rent,Estates Directorate,London Borough Hammersmith & Fulham,2161694,"67,800.00",Optional requirement only
Department of Health,Imperial College Healthcare NHS Trust,10/03/2011,A&C Band 3,Public Health & Primary Care,London Central & West Unscheduled Care Collab,2145170,"37,800.90",Optional requirement only
Department of Health,Imperial College Healthcare NHS Trust,10/03/2011,Pfh Gp Salaried Doctors,Public Health & Primary Care,London Central & West Unscheduled Care Collab,2145170,"86,228.82",Optional requirement only
Department of Health,Imperial College Healthcare NHS Trust,10/03/2011,Pfh Gp Sessional Doctors,Public Health & Primary Care,London Central & West Unscheduled Care Collab,2145170,"277,214.06",Optional requirement only
Department of Health,Imperial College Healthcare NHS Trust,10/03/2011,Pfh Out Of Hours Service,Public Health & Primary Care,London Central & West Unscheduled Care Collab,2145170,"170,260.64",Optional requirement only
Department of Health,Imperial College Healthcare NHS Trust,10/03/2011,Pfh Single Point Of Access,Public Health & Primary Care,London Central & West Unscheduled Care Collab,2145170,"26,524.00",Optional requirement only
Department of Health,Imperial College Healthcare NHS Trust,28/03/2011,Services Provided,Specialist Services 2,London Perfusion Science,2140128,"35,902.50",Optional requirement only
Department of Health,Imperial College Healthcare NHS Trust,28/03/2011,F & F-Additions,Capital Summary,M & E Installations Ltd,2149701,"33,776.00",Optional requirement only
Department of Health,Imperial College Healthcare NHS Trust,29/03/2011,F & F-Additions,Capital Summary,M & E Installations Ltd,2149926,"31,780.47",Optional requirement only
Department of Health,Imperial College Healthcare NHS Trust,22/03/2011,Service Charge - Rent Property,Estates Directorate,M J Mapp Ltd,2151983,"34,710.00",Optional requirement only
Department of Health,Imperial College Healthcare NHS Trust,24/03/2011,Buildings-Additions-Purchased,Capital Summary,Mansell Construction Services Ltd,2152727,"120,000.00",Optional requirement only
Department of Health,Imperial College Healthcare NHS Trust,22/03/2011,Medical Equipment,Specialist Services 2,Maquet Ltd,2138433,"60,000.00",Optional requirement only
Department of Health,Imperial College Healthcare NHS Trust,22/03/2011,P & M-Additions-Purchased,Capital Summary,Maquet Ltd,2152835,"426,150.00",Optional requirement only
Department of Health,Imperial College Healthcare NHS Trust,29/03/2011,Buildings-Additions-Purchased,Capital Summary,Me Construction Ltd,2152818,"66,715.20",Optional requirement only
Department of Health,Imperial College Healthcare NHS Trust,15/03/2011,Computers - Software Purchase,Specialist Services 2,Medcon Uk Ltd,2125367,"29,375.00",Optional requirement only
Department of Health,Imperial College Healthcare NHS Trust,01/03/2011,Blood,Clin & Investigative Sciences,Nhs Blood And Transplant,2127981,"125,536.14",Optional requirement only
Department of Health,Imperial College Healthcare NHS Trust,01/03/2011,Blood Transfusion,Clin & Investigative Sciences,Nhs Blood And Transplant,2127976,"174,909.45",Optional requirement only
Department of Health,Imperial College Healthcare NHS Trust,03/03/2011,Conference Centre Recharges,Clin & Investigative Sciences,Nhs Blood And Transplant,2127973,"339,043.24",Optional requirement only
Department of Health,Imperial College Healthcare NHS Trust,17/03/2011,Blood,Clin & Investigative Sciences,Nhs Blood And Transplant,2142350,"62,246.01",Optional requirement only
Department of Health,Imperial College Healthcare NHS Trust,22/03/2011,Blood Transfusion,Clin & Investigative Sciences,Nhs Blood And Transplant,2095793,"174,909.45",Optional requirement only
Department of Health,Imperial College Healthcare NHS Trust,03/03/2011,Fp10,Clin & Investigative Sciences,Nhs Business Services Authority,2127914,"70,530.76",Optional requirement only
Department of Health,Imperial College Healthcare NHS Trust,22/03/2011,Redundancy,Parkhill Audit Agency,Nhs Pensions Agency,2152103,"101,141.33",Optional requirement only
Department of Health,Imperial College Healthcare NHS Trust,08/03/2011,Supplies Issues Recharges,Stock,Nhs Supply Chain,2141370,"81,373.87",Optional requirement only
Department of Health,Imperial College Healthcare NHS Trust,08/03/2011,Supplies Issues Recharges,Stock,Nhs Supply Chain,2141371,"78,076.94",Optional requirement only
Department of Health,Imperial College Healthcare NHS Trust,08/03/2011,Supplies Issues Recharges,Stock,Nhs Supply Chain,2141372,"83,311.46",Optional requirement only
Department of Health,Imperial College Healthcare NHS Trust,15/03/2011,Supplies Issues Recharges,Stock,Nhs Supply Chain,2147676,"103,346.77",Optional requirement only
Department of Health,Imperial College Healthcare NHS Trust,15/03/2011,Supplies Issues Recharges,Stock,Nhs Supply Chain,2147678,"95,067.78",Optional requirement only
Department of Health,Imperial College Healthcare NHS Trust,15/03/2011,Supplies Issues Recharges,Stock,Nhs Supply Chain,2147682,"96,166.27",Optional requirement only
Department of Health,Imperial College Healthcare NHS Trust,17/03/2011,Supplies Issues Recharges,Stock,Nhs Supply Chain,2147688,"80,421.51",Optional requirement only
Department of Health,Imperial College Healthcare NHS Trust,17/03/2011,Supplies Issues Recharges,Stock,Nhs Supply Chain,2147692,"69,320.07",Optional requirement only
Department of Health,Imperial College Healthcare NHS Trust,17/03/2011,Supplies Issues Recharges,Stock,Nhs Supply Chain,2147695,"84,479.29",Optional requirement only
Department of Health,Imperial College Healthcare NHS Trust,22/03/2011,Supplies Issues Recharges,Stock,Nhs Supply Chain,2153260,"91,152.07",Optional requirement only
Department of Health,Imperial College Healthcare NHS Trust,22/03/2011,Supplies Issues Recharges,Stock,Nhs Supply Chain,2153264,"100,056.92",Optional requirement only
Department of Health,Imperial College Healthcare NHS Trust,22/03/2011,Supplies Issues Recharges,Stock,Nhs Supply Chain,2153266,"96,485.31",Optional requirement only
Department of Health,Imperial College Healthcare NHS Trust,03/03/2011,Miscellaneous Items,Specialist Services 2,North West London Hospitals Nhs Trust,2098486,"190,444.43",Optional requirement only
Department of Health,Imperial College Healthcare NHS Trust,22/03/2011,Management Services,Specialist Services 1,North West London Hospitals Nhs Trust,2147821,"58,820.00",Optional requirement only
Department of Health,Imperial College Healthcare NHS Trust,25/03/2011,Miscellaneous Items,Specialist Services 2,North West London Hospitals Nhs Trust,2158271,"221,092.00",Optional requirement only
Department of Health,Imperial College Healthcare NHS Trust,25/03/2011,Miscellaneous Items,Specialist Services 2,North West London Hospitals Nhs Trust,2158273,"159,065.00",Optional requirement only
Department of Health,Imperial College Healthcare NHS Trust,01/03/2011,Jac - Stock,Stock,Novartis Pharmaceutical (Uk) Ltd,2136367,"102,305.28",Optional requirement only
Department of Health,Imperial College Healthcare NHS Trust,22/03/2011,Jac - Stock,Stock,Novartis Pharmaceutical (Uk) Ltd,2147555,"97,966.44",Optional requirement only
Department of Health,Imperial College Healthcare NHS Trust,28/03/2011,Hh Pharmacy Stock,Stock,Novartis Pharmaceutical (Uk) Ltd,2148530,"49,886.76",Optional requirement only
Department of Health,Imperial College Healthcare NHS Trust,28/03/2011,Hh Pharmacy Stock,Stock,Novartis Pharmaceutical (Uk) Ltd,2154635,"70,961.62",Optional requirement only
Department of Health,Imperial College Healthcare NHS Trust,29/03/2011,Jac - Stock,Stock,Novartis Pharmaceutical (Uk) Ltd,2160148,"66,795.30",Optional requirement only
Department of Health,Imperial College Healthcare NHS Trust,22/03/2011,P & M-Additions-Purchased,Capital Summary,Oncology Systems Ltd,2127712,"109,275.00",Optional requirement only
Department of Health,Imperial College Healthcare NHS Trust,17/03/2011,Buildings-Additions-Purchased,Capital Summary,Peak Contractors Ltd,2149677,"105,948.00",Optional requirement only
Department of Health,Imperial College Healthcare NHS Trust,17/03/2011,Buildings-Additions-Purchased,Capital Summary,Peak Contractors Ltd,2149678,"39,499.73",Optional requirement only
Department of Health,Imperial College Healthcare NHS Trust,15/03/2011,Interpreting Services,Nursing & Ops Directorate,Pearl Linguistics Ltd,2148180,"71,529.90",Optional requirement only
Department of Health,Imperial College Healthcare NHS Trust,28/03/2011,Interpreting Services,Nursing & Ops Directorate,Pearl Linguistics Ltd,2148186,"60,808.65",Optional requirement only
Department of Health,Imperial College Healthcare NHS Trust,01/03/2011,Medical Equipment,Specialist Services 1,Pentax Uk Ltd,2129358,"80,080.20",Optional requirement only
Department of Health,Imperial College Healthcare NHS Trust,22/03/2011,P & M-Additions-Purchased,Capital Summary,Philips Healthcare,2154344,"31,511.16",Optional requirement only
Department of Health,Imperial College Healthcare NHS Trust,22/03/2011,P & M-Additions-Purchased,Capital Summary,Philips Healthcare,2154347,"149,712.66",Optional requirement only
Department of Health,Imperial College Healthcare NHS Trust,24/03/2011,P & M-Additions-Purchased,Capital Summary,Philips Healthcare,2135372,"418,031.16",Optional requirement only
Department of Health,Imperial College Healthcare NHS Trust,29/03/2011,P & M-Additions-Purchased,Capital Summary,Philips Healthcare,2154349,"43,937.28",Optional requirement only
Department of Health,Imperial College Healthcare NHS Trust,29/03/2011,P & M-Additions-Purchased,Capital Summary,Philips Healthcare,2161495,"40,412.64",Optional requirement only
Department of Health,Imperial College Healthcare NHS Trust,03/03/2011,Nhsp Weekly Bank,Agency,Pulse Healthcare Group,2140404,"156,636.11",Optional requirement only
Department of Health,Imperial College Healthcare NHS Trust,03/03/2011,Nhsp Weekly Bank,Agency,Pulse Healthcare Group,2140415,"180,813.13",Optional requirement only
Department of Health,Imperial College Healthcare NHS Trust,03/03/2011,Nhsp Weekly Bank,Agency,Pulse Healthcare Group,2140423,"45,300.00",Optional requirement only
Department of Health,Imperial College Healthcare NHS Trust,15/03/2011,Nhsp Weekly Bank,Agency,Pulse Healthcare Group,2145618,"187,698.55",Optional requirement only
Department of Health,Imperial College Healthcare NHS Trust,15/03/2011,Nhsp Weekly Bank,Agency,Pulse Healthcare Group,2147762,"35,608.63",Optional requirement only
Department of Health,Imperial College Healthcare NHS Trust,15/03/2011,Nhsp Weekly Bank,Agency,Pulse Healthcare Group,2147765,"177,461.51",Optional requirement only
Department of Health,Imperial College Healthcare NHS Trust,22/03/2011,Nhsp Weekly Bank,Agency,Pulse Healthcare Group,2153480,"188,228.08",Optional requirement only
Department of Health,Imperial College Healthcare NHS Trust,22/03/2011,Nhsp Weekly Bank,Agency,Pulse Healthcare Group,2153481,"35,456.99",Optional requirement only
Department of Health,Imperial College Healthcare NHS Trust,22/03/2011,Nhsp Weekly Bank,Agency,Pulse Healthcare Group,2153753,"45,300.00",Optional requirement only
Department of Health,Imperial College Healthcare NHS Trust,28/03/2011,Nhsp Weekly Bank,Agency,Pulse Healthcare Group,2158145,"191,573.12",Optional requirement only
Department of Health,Imperial College Healthcare NHS Trust,29/03/2011,P & M-Additions-Purchased,Capital Summary,Qiagen Ltd,2159310,"43,058.64",Optional requirement only
Department of Health,Imperial College Healthcare NHS Trust,29/03/2011,P & M-Additions-Purchased,Capital Summary,Qiagen Ltd,2160109,"45,600.00",Optional requirement only
Department of Health,Imperial College Healthcare NHS Trust,10/03/2011,Healthcare Asst Bank Grade 2,Medicine Cpg,Reed,2143914,"30,053.05",Optional requirement only
Department of Health,Imperial College Healthcare NHS Trust,10/03/2011,Midwifry&Nursing B5 Bank (O/S),Medicine Cpg,Reed,2143884,"50,219.53",Optional requirement only
Department of Health,Imperial College Healthcare NHS Trust,10/03/2011,Midwifry&Nursing B5 Bank (O/S),Medicine Cpg,Reed,2143914,"50,550.01",Optional requirement only
Department of Health,Imperial College Healthcare NHS Trust,10/03/2011,Midwifry&Nursing B5 Bank (O/S),Specialist Services 1,Reed,2143914,"32,848.88",Optional requirement only
Department of Health,Imperial College Healthcare NHS Trust,10/03/2011,Midwifry&Nursing B5 Bank (O/S),Specialist Services 2,Reed,2143884,"53,946.28",Optional requirement only
Department of Health,Imperial College Healthcare NHS Trust,10/03/2011,Midwifry&Nursing B5 Bank (O/S),Specialist Services 2,Reed,2143914,"51,604.55",Optional requirement only
Department of Health,Imperial College Healthcare NHS Trust,10/03/2011,Midwifry&Nursing B6 Bank (O/S),Specialist Services 1,Reed,2143914,"34,961.53",Optional requirement only
Department of Health,Imperial College Healthcare NHS Trust,10/03/2011,Midwifry&Nursing B6 Bank (O/S),Specialist Services 2,Reed,2143884,"30,171.18",Optional requirement only
Department of Health,Imperial College Healthcare NHS Trust,10/03/2011,Midwifry&Nursing B6 Bank (O/S),Specialist Services 2,Reed,2143914,"34,467.97",Optional requirement only
Department of Health,Imperial College Healthcare NHS Trust,10/03/2011,Midwifry&Nursing B6 Bank (O/S),Womens And Childrens Direct'E,Reed,2143884,"31,737.33",Optional requirement only
Department of Health,Imperial College Healthcare NHS Trust,22/03/2011,Midwifry&Nursing B5 Bank (O/S),Medicine Cpg,Reed,2149117,"54,913.34",Optional requirement only
Department of Health,Imperial College Healthcare NHS Trust,22/03/2011,Midwifry&Nursing B5 Bank (O/S),Medicine Cpg,Reed,2153064,"72,396.12",Optional requirement only
Department of Health,Imperial College Healthcare NHS Trust,22/03/2011,Midwifry&Nursing B5 Bank (O/S),Specialist Services 1,Reed,2149117,"38,069.92",Optional requirement only
Department of Health,Imperial College Healthcare NHS Trust,22/03/2011,Midwifry&Nursing B5 Bank (O/S),Specialist Services 1,Reed,2153064,"31,826.67",Optional requirement only
Department of Health,Imperial College Healthcare NHS Trust,22/03/2011,Midwifry&Nursing B5 Bank (O/S),Specialist Services 2,Reed,2149117,"42,719.18",Optional requirement only
Department of Health,Imperial College Healthcare NHS Trust,22/03/2011,Midwifry&Nursing B5 Bank (O/S),Specialist Services 2,Reed,2153064,"54,759.77",Optional requirement only
Department of Health,Imperial College Healthcare NHS Trust,22/03/2011,Midwifry&Nursing B5 Bank (O/S),Surgery And Cancer,Reed,2153064,"36,409.42",Optional requirement only
Department of Health,Imperial College Healthcare NHS Trust,22/03/2011,Midwifry&Nursing B6 Bank (O/S),Specialist Services 1,Reed,2149117,"34,517.99",Optional requirement only
Department of Health,Imperial College Healthcare NHS Trust,22/03/2011,Midwifry&Nursing B6 Bank (O/S),Specialist Services 1,Reed,2153064,"42,144.06",Optional requirement only
Department of Health,Imperial College Healthcare NHS Trust,22/03/2011,Midwifry&Nursing B6 Bank (O/S),Specialist Services 2,Reed,2149117,"33,467.86",Optional requirement only
Department of Health,Imperial College Healthcare NHS Trust,22/03/2011,Midwifry&Nursing B6 Bank (O/S),Specialist Services 2,Reed,2153064,"33,384.60",Optional requirement only
Department of Health,Imperial College Healthcare NHS Trust,22/03/2011,Midwifry&Nursing B6 Bank (O/S),Womens And Childrens Direct'E,Reed,2149117,"35,789.48",Optional requirement only
Department of Health,Imperial College Healthcare NHS Trust,22/03/2011,Midwifry&Nursing B6 Bank (O/S),Womens And Childrens Direct'E,Reed,2153064,"34,224.07",Optional requirement only
Department of Health,Imperial College Healthcare NHS Trust,29/03/2011,P & M-Additions-Purchased,Capital Summary,Research Instruments Ltd,2161493,"50,388.00",Optional requirement only
Department of Health,Imperial College Healthcare NHS Trust,01/03/2011,Hh Pharmacy Stock,Stock,Roche Products Ltd,2130567,"88,013.52",Optional requirement only
Department of Health,Imperial College Healthcare NHS Trust,03/03/2011,Chx Pharmacy Stock,Stock,Roche Products Ltd,2136987,"61,110.00",Optional requirement only
Department of Health,Imperial College Healthcare NHS Trust,28/03/2011,Chx Pharmacy Stock,Stock,Roche Products Ltd,2151293,"61,110.00",Optional requirement only
Department of Health,Imperial College Healthcare NHS Trust,01/03/2011,Buildings-Additions-Purchased,Capital Summary,Russell Cawberry Ltd,2135354,"215,592.00",Optional requirement only
Department of Health,Imperial College Healthcare NHS Trust,28/03/2011,Buildings-Additions-Purchased,Capital Summary,Russell Cawberry Ltd,2159197,"200,954.40",Optional requirement only
Department of Health,Imperial College Healthcare NHS Trust,28/03/2011,Buildings-Additions-Purchased,Capital Summary,Russell Cawberry Ltd,2160200,"422,092.80",Optional requirement only
Department of Health,Imperial College Healthcare NHS Trust,28/03/2011,Buildings-Additions-Purchased,Capital Summary,Russell Cawberry Ltd,2160215,"48,800.40",Optional requirement only
Department of Health,Imperial College Healthcare NHS Trust,29/03/2011,Buildings-Additions-Purchased,Capital Summary,Russell Cawberry Ltd,2162253,"163,688.40",Optional requirement only
Department of Health,Imperial College Healthcare NHS Trust,15/03/2011,Buildings-Additions-Purchased,Capital Summary,Shj Hospital Pipelines Ltd,2141875,"34,770.00",Optional requirement only
Department of Health,Imperial College Healthcare NHS Trust,15/03/2011,Buildings-Additions-Purchased,Capital Summary,Shj Hospital Pipelines Ltd,2141877,"42,510.00",Optional requirement only
Department of Health,Imperial College Healthcare NHS Trust,15/03/2011,Buildings-Additions-Purchased,Capital Summary,Shj Hospital Pipelines Ltd,2147860,"38,454.00",Optional requirement only
Department of Health,Imperial College Healthcare NHS Trust,01/03/2011,P & M-Additions-Purchased,Capital Summary,Siemens Healthcare Diagnostics Ltd,2136704,"73,234.50",Optional requirement only
Department of Health,Imperial College Healthcare NHS Trust,17/03/2011,P & M-Additions-Purchased,Capital Summary,Siemens Plc,2141842,"756,219.00",Optional requirement only
Department of Health,Imperial College Healthcare NHS Trust,22/03/2011,P & M-Additions-Purchased,Capital Summary,Siemens Plc,2151096,"94,000.00",Optional requirement only
Department of Health,Imperial College Healthcare NHS Trust,29/03/2011,P & M-Additions-Purchased,Capital Summary,Siemens Plc,2152841,"39,801.00",Optional requirement only
Department of Health,Imperial College Healthcare NHS Trust,03/03/2011,P & M-Additions-Purchased,Capital Summary,Sonosite Ltd,2137434,"33,139.20",Optional requirement only
Department of Health,Imperial College Healthcare NHS Trust,08/03/2011,P & M-Additions-Purchased,Capital Summary,Sonosite Ltd,2052432,"61,283.53",Optional requirement only
Department of Health,Imperial College Healthcare NHS Trust,28/03/2011,Ebme Contracts,Specialist Services 2,Sorin Group Uk Ltd(Former Dideco Spa-Uk ),2108184,"61,156.80",Optional requirement only
Department of Health,Imperial College Healthcare NHS Trust,01/03/2011,Electricity,Estates Directorate,Southern Electric,2124524,"60,773.73",Optional requirement only
Department of Health,Imperial College Healthcare NHS Trust,01/03/2011,Electricity,Estates Directorate,Southern Electric,2130035,"80,112.38",Optional requirement only
Department of Health,Imperial College Healthcare NHS Trust,03/03/2011,Electricity,Estates Directorate,Southern Electric,2131283,"45,792.33",Optional requirement only
Department of Health,Imperial College Healthcare NHS Trust,17/03/2011,Electricity,Estates Directorate,Southern Electric,2147382,"30,979.22",Optional requirement only
Department of Health,Imperial College Healthcare NHS Trust,17/03/2011,Electricity,Estates Directorate,Southern Electric,2147386,"55,430.62",Optional requirement only
Department of Health,Imperial College Healthcare NHS Trust,17/03/2011,Electricity,Estates Directorate,Southern Electric,2148462,"71,288.33",Optional requirement only
Department of Health,Imperial College Healthcare NHS Trust,22/03/2011,Defibrillators,Specialist Services 2,St Jude Medical U K Limited,2153913,"31,490.00",Optional requirement only
Department of Health,Imperial College Healthcare NHS Trust,24/03/2011,P & M-Additions-Purchased,Capital Summary,Stryker Uk Ltd,2142718,"35,374.62",Optional requirement only
Department of Health,Imperial College Healthcare NHS Trust,29/03/2011,Laundry - Disposable Drapes,Nursing & Ops Directorate,Synergy Health  Uk Ltd,2161502,"37,703.56",Optional requirement only
Department of Health,Imperial College Healthcare NHS Trust,29/03/2011,Linen Rental Contract,Nursing & Ops Directorate,Synergy Health  Uk Ltd,2161502,"106,734.01",Optional requirement only
Department of Health,Imperial College Healthcare NHS Trust,29/03/2011,Stores Issues,Nursing & Ops Directorate,Synergy Health  Uk Ltd,2161502,"40,377.86",Optional requirement only
Department of Health,Imperial College Healthcare NHS Trust,29/03/2011,Computers - Maintenance Softwa,Clin & Investigative Sciences,Technidata Uk Ltd,2151963,"43,880.64",Optional requirement only
Department of Health,Imperial College Healthcare NHS Trust,29/03/2011,Telecoms - Speech Recognition ,Information & Comms Technology,Telephonetics Vip Ltd,2153358,"112,432.80",Optional requirement only
Department of Health,Imperial College Healthcare NHS Trust,17/03/2011,Postage (Inc Carriage),Nursing & Ops Directorate,Teleset,2150063,"60,007.20",Optional requirement only
Department of Health,Imperial College Healthcare NHS Trust,28/03/2011,Postage (Inc Carriage),Nursing & Ops Directorate,Teleset,2158790,"60,007.20",Optional requirement only
Department of Health,Imperial College Healthcare NHS Trust,01/03/2011,Payment To Tvha,Estates Directorate,Thames Valley Charitable Housing,2137820,"34,339.05",Optional requirement only
Department of Health,Imperial College Healthcare NHS Trust,08/03/2011,Thames Valley Housing Assoc,Housing Deductions,Thames Valley Charitable Housing,2142915,"77,510.61",Optional requirement only
Department of Health,Imperial College Healthcare NHS Trust,29/03/2011,Thames Valley Housing Assoc,Housing Deductions,Thames Valley Charitable Housing,2160615,"75,265.94",Optional requirement only
Department of Health,Imperial College Healthcare NHS Trust,10/03/2011,Other Nursing Course Fees,Nursing & Ops Directorate,The Learning Clinic,2145077,"40,000.00",Optional requirement only
Department of Health,Imperial College Healthcare NHS Trust,08/03/2011,Laundry - Contract,Nursing & Ops Directorate,The Sunlight Service Group Ltd,2140103,"54,192.49",Optional requirement only
Department of Health,Imperial College Healthcare NHS Trust,29/03/2011,Laundry - Contract,Nursing & Ops Directorate,The Sunlight Service Group Ltd,2161507,"42,332.56",Optional requirement only
Department of Health,Imperial College Healthcare NHS Trust,22/03/2011,It Eqpt-Additions,Capital Summary,The Uk Office Ltd,2137405,"37,350.00",Optional requirement only
Department of Health,Imperial College Healthcare NHS Trust,29/03/2011,F & F-Additions,Capital Summary,Thompson Electrical Services Limited,2152850,"34,225.30",Optional requirement only
Department of Health,Imperial College Healthcare NHS Trust,08/03/2011,Gas,Estates Directorate,Total Gas & Power Ltd,2142980,"80,049.78",Optional requirement only
Department of Health,Imperial College Healthcare NHS Trust,08/03/2011,Gas,Estates Directorate,Total Gas & Power Ltd,2143034,"181,024.90",Optional requirement only
Department of Health,Imperial College Healthcare NHS Trust,08/03/2011,Gas,Estates Directorate,Total Gas & Power Ltd,2143036,"159,574.86",Optional requirement only
Department of Health,Imperial College Healthcare NHS Trust,22/03/2011,Gas,Estates Directorate,Total Gas & Power Ltd,2153268,"71,995.92",Optional requirement only
Department of Health,Imperial College Healthcare NHS Trust,22/03/2011,Gas,Estates Directorate,Total Gas & Power Ltd,2153277,"140,678.26",Optional requirement only
Department of Health,Imperial College Healthcare NHS Trust,22/03/2011,Buildings-Additions-Purchased,Capital Summary,Uk Power Networks (Operations) Ltd,2148317,"286,899.83",Optional requirement only
Department of Health,Imperial College Healthcare NHS Trust,22/03/2011,Patient Investigations - Nhs,Medicine Cpg,University Hospital Birmingham Nhs Foundation,2123748,"86,747.00",Optional requirement only
Department of Health,Imperial College Healthcare NHS Trust,28/03/2011,It Eqpt-Additions,Capital Summary,Vertex  I.T. Solutions,2142640,"63,080.28",Optional requirement only
Department of Health,Imperial College Healthcare NHS Trust,22/03/2011,Miscellaneous Items,Specialist Services 2,West Hertfordshire Hospitals Nhs Trust,1889688,"26,105.00",Optional requirement only
Department of Health,Imperial College Healthcare NHS Trust,10/03/2011,services recvd NHS - SubCon Healthcare ,Specialist Services 1,West London Mental Health Nhs Trust,2118309,"33,445.84",Optional requirement only
Department of Health,Imperial College Healthcare NHS Trust,10/03/2011,services recvd NHS - SubCon Healthcare ,Specialist Services 1,West London Mental Health Nhs Trust,2118328,"46,034.00",Optional requirement only
Department of Health,Imperial College Healthcare NHS Trust,01/03/2011,Miscellaneous Items,Dir Of Chief Exec,Westminster Pct Com,2114088,"156,000.00",Optional requirement only
,,,,,,Sum:,"30,233,513.23",
,,,,,,281,,
